[Event "*** Titled Tuesday Blitz"]
[Site "Chess.com"]
[Date "2019.12.03"]
[Round "1"]
[White "becemix"]
[Black "Parhamov"]
[Result "0-1"]
[WhiteElo "2513"]
[BlackElo "3094"]
[TimeControl "180+2"]
[EndTime "13:12:17 PST"]
[Termination "Parhamov won on time"]

1. e4 {[%clk 0:03:00.2]} 1... c5 {[%clk 0:02:54.4]} 2. d4 {[%clk 0:02:59.9]}
2... cxd4 {[%clk 0:02:55.2]} 3. c3 {[%clk 0:03:00.4]} 3... d3 {[%clk 0:02:53.7]}
4. Bxd3 {[%clk 0:02:59]} 4... Nc6 {[%clk 0:02:52.8]} 5. Nf3 {[%clk 0:02:59.8]}
5... g6 {[%clk 0:02:53.3]} 6. O-O {[%clk 0:03:00.9]} 6... Bg7 {[%clk 0:02:54.2]}
7. Bc4 {[%clk 0:03:01.9]} 7... d6 {[%clk 0:02:51.9]} 8. Qb3 {[%clk 0:03:02.5]}
8... e6 {[%clk 0:02:45.6]} 9. Rd1 {[%clk 0:03:01.9]} 9... a6 {[%clk 0:02:20.4]}
10. Bf4 {[%clk 0:02:57.5]} 10... Na5 {[%clk 0:02:20.2]} 11. Qb4 {[%clk
0:02:54.2]} 11... Nxc4 {[%clk 0:02:19.6]} 12. Qxc4 {[%clk 0:02:55]} 12... d5
{[%clk 0:01:58.7]} 13. exd5 {[%clk 0:02:54.3]} 13... Nf6 {[%clk 0:01:57.7]} 14.
Bc7 {[%clk 0:02:40.8]} 14... exd5 {[%clk 0:01:48.8]} 15. Qc5 {[%clk 0:02:25.2]}
15... Ne4 {[%clk 0:01:04.1]} 16. Qxd5 {[%clk 0:02:07.3]} 16... Qxd5 {[%clk
0:01:04.2]} 17. Rxd5 {[%clk 0:02:08.6]} 17... Be6 {[%clk 0:01:05.6]} 18. Rd1
{[%clk 0:02:06.9]} 18... O-O {[%clk 0:01:06.5]} 19. Nbd2 {[%clk 0:02:08.1]}
19... Nc5 {[%clk 0:01:06.9]} 20. Bd6 {[%clk 0:02:00.2]} 20... Rfc8 {[%clk
0:01:06.9]} 21. Bxc5 {[%clk 0:01:55.6]} 21... Rxc5 {[%clk 0:01:07.5]} 22. Nb3
{[%clk 0:01:57.5]} 22... Rb5 {[%clk 0:01:04.9]} 23. Nfd4 {[%clk 0:01:40.3]}
23... Bxd4 {[%clk 0:01:05.5]} 24. cxd4 {[%clk 0:01:36.1]} 24... Bxb3 {[%clk
0:01:06]} 25. axb3 {[%clk 0:01:37]} 25... Rxb3 {[%clk 0:01:07.5]} 26. Rd2 {[%clk
0:01:38.4]} 26... Rd8 {[%clk 0:01:08.6]} 27. Rc1 {[%clk 0:01:34.5]} 27... Rd5
{[%clk 0:01:09]} 28. Kf1 {[%clk 0:01:21.5]} 28... a5 {[%clk 0:01:04.9]} 29. Ke2
{[%clk 0:01:19.1]} 29... a4 {[%clk 0:01:05.9]} 30. Rc3 {[%clk 0:01:14.9]} 30...
Rdb5 {[%clk 0:01:02.4]} 31. Rxb3 {[%clk 0:00:58.2]} 31... Rxb3 {[%clk
0:01:03.3]} 32. Kd1 {[%clk 0:00:56.1]} 32... Kf8 {[%clk 0:01:04]} 33. Kc2 {[%clk
0:00:45]} 33... Ke7 {[%clk 0:01:04.5]} 34. Re2+ {[%clk 0:00:44.5]} 34... Kd7
{[%clk 0:01:05]} 35. Re5 {[%clk 0:00:43.2]} 35... b5 {[%clk 0:01:05.3]} 36. h4
{[%clk 0:00:40.2]} 36... h5 {[%clk 0:00:59.3]} 37. Rd5+ {[%clk 0:00:39.2]} 37...
Kc6 {[%clk 0:01:00.2]} 38. Rd8 {[%clk 0:00:37.9]} 38... Rb4 {[%clk 0:01:00.1]}
39. Kc3 {[%clk 0:00:30.3]} 39... Rc4+ {[%clk 0:01:00.7]} 40. Kd3 {[%clk
0:00:31.7]} 40... Kb6 {[%clk 0:01:01.7]} 41. Rd7 {[%clk 0:00:31]} 41... f5
{[%clk 0:00:45]} 42. Rd6+ {[%clk 0:00:24.6]} 42... Rc6 {[%clk 0:00:46.2]} 43.
Rxc6+ {[%clk 0:00:21]} 43... Kxc6 {[%clk 0:00:48.1]} 44. Kc3 {[%clk 0:00:22.9]}
44... Kd5 {[%clk 0:00:48.9]} 45. Kb4 {[%clk 0:00:24.3]} 45... Kxd4 {[%clk
0:00:49.6]} 46. Kxb5 {[%clk 0:00:25.7]} 46... f4 {[%clk 0:00:41.9]} 47. Kxa4
{[%clk 0:00:20.2]} 47... f3 {[%clk 0:00:40.3]} 48. g3 {[%clk 0:00:07.8]} 48...
Kd3 {[%clk 0:00:41.2]} 49. b4 {[%clk 0:00:09.7]} 49... Ke2 {[%clk 0:00:42.7]}
50. b5 {[%clk 0:00:11.6]} 50... Kxf2 {[%clk 0:00:44.3]} 51. b6 {[%clk
0:00:13.5]} 51... Kg2 {[%clk 0:00:41.6]} 52. b7 {[%clk 0:00:15.1]} 52... f2
{[%clk 0:00:43.2]} 53. b8=Q {[%clk 0:00:16.4]} 53... f1=Q {[%clk 0:00:44.4]} 54.
Qd6 {[%clk 0:00:14.3]} 54... Qc4+ {[%clk 0:00:40.8]} 55. Ka5 {[%clk 0:00:13.1]}
55... Qc3+ {[%clk 0:00:39.1]} 56. Kb5 {[%clk 0:00:11.4]} 56... Qxg3 {[%clk
0:00:39.5]} 57. Qd8 {[%clk 0:00:11.2]} 57... Kh3 {[%clk 0:00:40.1]} 58. Qf6
{[%clk 0:00:10.8]} 58... Qd3+ {[%clk 0:00:32]} 59. Kb4 {[%clk 0:00:09.7]} 59...
Qf5 {[%clk 0:00:29.9]} 60. Qe7 {[%clk 0:00:05.3]} 60... Qf4+ {[%clk 0:00:29.4]}
61. Kc5 {[%clk 0:00:05.5]} 61... Qxh4 {[%clk 0:00:28]} 62. Qe3+ {[%clk
0:00:05.7]} 62... Qg3 {[%clk 0:00:28.9]} 63. Qe6+ {[%clk 0:00:06.8]} 63... Kh4
{[%clk 0:00:25.2]} 64. Qe4+ {[%clk 0:00:05]} 64... Kg5 {[%clk 0:00:21.8]} 65.
Qe7+ {[%clk 0:00:04]} 65... Kf4 {[%clk 0:00:22.9]} 66. Qf6+ {[%clk 0:00:04.1]}
66... Ke3 {[%clk 0:00:22.4]} 67. Qc3+ {[%clk 0:00:05.3]} 67... Kf2 {[%clk
0:00:23.5]} 68. Qd2+ {[%clk 0:00:04.5]} 68... Kf1 {[%clk 0:00:24.6]} 69. Qd1+
{[%clk 0:00:02.6]} 69... Kg2 {[%clk 0:00:25.6]} 70. Qd5+ {[%clk 0:00:01.7]}
70... Kh2 {[%clk 0:00:26]} 71. Qd2+ {[%clk 0:00:02.6]} 71... Kh3 {[%clk
0:00:27.3]} 72. Qd7+ {[%clk 0:00:03.3]} 72... Qg4 {[%clk 0:00:26.3]} 73. Qd3+
{[%clk 0:00:03.9]} 73... Kh4 {[%clk 0:00:25.7]} 74. Qf1 {[%clk 0:00:05.3]} 74...
Qf5+ {[%clk 0:00:25.2]} 0-1

[Event "*** Titled Tuesday Blitz"]
[Site "Chess.com"]
[Date "2019.12.03"]
[Round "1"]
[White "andrzej"]
[Black "Heineccius"]
[Result "1-0"]
[WhiteElo "2372"]
[BlackElo "2652"]
[TimeControl "180+2"]
[EndTime "13:12:41 PST"]
[Termination "andrzej won by checkmate"]

1. d4 {[%clk 0:02:58.7]} 1... Nf6 {[%clk 0:03:00.4]} 2. c4 {[%clk 0:02:56.8]}
2... e6 {[%clk 0:03:01.6]} 3. Nf3 {[%clk 0:02:57.6]} 3... Bb4+ {[%clk
0:03:02.6]} 4. Bd2 {[%clk 0:02:58.7]} 4... a5 {[%clk 0:03:03.4]} 5. g3 {[%clk
0:02:57.7]} 5... d6 {[%clk 0:03:02.7]} 6. Bg2 {[%clk 0:02:58.8]} 6... Nbd7
{[%clk 0:03:02.4]} 7. O-O {[%clk 0:02:57.5]} 7... e5 {[%clk 0:02:59.9]} 8. Qc2
{[%clk 0:02:46.9]} 8... O-O {[%clk 0:02:56.6]} 9. Nc3 {[%clk 0:02:40.2]} 9...
exd4 {[%clk 0:02:54.9]} 10. Nxd4 {[%clk 0:02:40.5]} 10... a4 {[%clk 0:02:49.5]}
11. Rad1 {[%clk 0:02:28.5]} 11... Nb6 {[%clk 0:02:41.7]} 12. b3 {[%clk
0:02:26.1]} 12... Re8 {[%clk 0:02:31.1]} 13. Rfe1 {[%clk 0:02:23.9]} 13... axb3
{[%clk 0:02:02.3]} 14. axb3 {[%clk 0:02:24.4]} 14... c6 {[%clk 0:01:55.6]} 15.
e4 {[%clk 0:02:21.9]} 15... Bc5 {[%clk 0:01:55.6]} 16. Nf5 {[%clk 0:02:06.8]}
16... Bxf5 {[%clk 0:01:39.9]} 17. exf5 {[%clk 0:02:08.7]} 17... Qc7 {[%clk
0:01:32.5]} 18. Ne4 {[%clk 0:01:53.1]} 18... Nxe4 {[%clk 0:01:29.9]} 19. Rxe4
{[%clk 0:01:53.3]} 19... Rxe4 {[%clk 0:01:25.6]} 20. Bxe4 {[%clk 0:01:53.8]}
20... Nd7 {[%clk 0:01:26.6]} 21. Bc3 {[%clk 0:01:52.4]} 21... Re8 {[%clk
0:01:17]} 22. f6 {[%clk 0:01:43.1]} 22... Nxf6 {[%clk 0:00:38.6]} 23. Bxf6
{[%clk 0:01:43.6]} 23... gxf6 {[%clk 0:00:40.1]} 24. Bxh7+ {[%clk 0:01:45.1]}
24... Kg7 {[%clk 0:00:41.3]} 25. Bd3 {[%clk 0:01:11.3]} 25... Re5 {[%clk
0:00:41.6]} 26. Rd2 {[%clk 0:01:02]} 26... Qe7 {[%clk 0:00:41.5]} 27. Re2 {[%clk
0:01:03.1]} 27... Bd4 {[%clk 0:00:38.6]} 28. Kg2 {[%clk 0:00:58.5]} 28... Qe6
{[%clk 0:00:36]} 29. h3 {[%clk 0:00:55.7]} 29... d5 {[%clk 0:00:33.6]} 30. cxd5
{[%clk 0:00:53.5]} 30... Qxd5+ {[%clk 0:00:32.8]} 31. Be4 {[%clk 0:00:49.8]}
31... Qd6 {[%clk 0:00:32.6]} 32. Bf3 {[%clk 0:00:50.3]} 32... Rg5 {[%clk
0:00:27.4]} 33. h4 {[%clk 0:00:43.5]} 33... Bxf2 {[%clk 0:00:21.9]} 34. Kxf2
{[%clk 0:00:33.7]} 34... Qxg3+ {[%clk 0:00:22.4]} 35. Ke3 {[%clk 0:00:32.5]}
35... Re5+ {[%clk 0:00:23.6]} 36. Kd2 {[%clk 0:00:33.6]} 36... Qf4+ {[%clk
0:00:23.9]} 37. Ke1 {[%clk 0:00:27.2]} 37... Qxf3 {[%clk 0:00:25.2]} 38. Rxe5
{[%clk 0:00:24.7]} 38... fxe5 {[%clk 0:00:26.4]} 39. Qh2 {[%clk 0:00:17.2]}
39... f6 {[%clk 0:00:25.1]} 40. h5 {[%clk 0:00:17]} 40... Qe4+ {[%clk
0:00:24.5]} 41. Kd1 {[%clk 0:00:17.4]} 41... Qg4+ {[%clk 0:00:25.2]} 42. Kc2
{[%clk 0:00:17.5]} 42... Kh6 {[%clk 0:00:23.6]} 43. Qd2+ {[%clk 0:00:12]} 43...
Kxh5 {[%clk 0:00:24.6]} 44. Qd8 {[%clk 0:00:12]} 44... Qf5+ {[%clk 0:00:21.4]}
45. Kb2 {[%clk 0:00:12.6]} 45... Qf2+ {[%clk 0:00:20.6]} 46. Kb1 {[%clk
0:00:13.8]} 46... Qg1+ {[%clk 0:00:17.9]} 47. Kc2 {[%clk 0:00:14]} 47... Qg6+
{[%clk 0:00:17]} 48. Kb2 {[%clk 0:00:13.4]} 48... e4 {[%clk 0:00:18.3]} 49. Qh8+
{[%clk 0:00:09.6]} 49... Kg5 {[%clk 0:00:18.6]} 50. Qh3 {[%clk 0:00:09.2]} 50...
f5 {[%clk 0:00:19.5]} 51. Qg3+ {[%clk 0:00:09.7]} 51... Kh6 {[%clk 0:00:20.7]}
52. Qh4+ {[%clk 0:00:11]} 52... Kg7 {[%clk 0:00:21.3]} 53. Qe7+ {[%clk
0:00:12.3]} 53... Qf7 {[%clk 0:00:22.4]} 54. Qg5+ {[%clk 0:00:13.6]} 54... Kh7
{[%clk 0:00:23.5]} 55. Qh4+ {[%clk 0:00:13.9]} 55... Kg6 {[%clk 0:00:24.8]} 56.
Qg3+ {[%clk 0:00:14.8]} 56... Kf6 {[%clk 0:00:26.2]} 57. Qd6+ {[%clk 0:00:15.3]}
57... Qe6 {[%clk 0:00:27.7]} 58. Qf8+ {[%clk 0:00:15.4]} 58... Ke5 {[%clk
0:00:29.1]} 59. Qh8+ {[%clk 0:00:11.1]} 59... Qf6 {[%clk 0:00:29.9]} 60. Qh2+
{[%clk 0:00:10.9]} 60... Kd5+ {[%clk 0:00:30.5]} 61. Kb1 {[%clk 0:00:12.5]}
61... f4 {[%clk 0:00:31.7]} 62. Qd2+ {[%clk 0:00:11.9]} 62... Ke6 {[%clk
0:00:31.7]} 63. Qc2 {[%clk 0:00:08.6]} 63... e3 {[%clk 0:00:32.2]} 64. Qe4+
{[%clk 0:00:09.7]} 64... Qe5 {[%clk 0:00:32.3]} 65. Qc4+ {[%clk 0:00:09.6]}
65... Kf6 {[%clk 0:00:31.7]} 66. Qg8 {[%clk 0:00:09.7]} 66... Qf5+ {[%clk
0:00:28.2]} 67. Kb2 {[%clk 0:00:10.4]} 67... Qe6 {[%clk 0:00:28.8]} 68. Qh8+
{[%clk 0:00:08.9]} 68... Ke7 {[%clk 0:00:29.9]} 69. Qg7+ {[%clk 0:00:07.3]}
69... Qf7 {[%clk 0:00:29.3]} 70. Qe5+ {[%clk 0:00:06.7]} 70... Kd7 {[%clk
0:00:30.4]} 71. Qd4+ {[%clk 0:00:06.8]} 71... Kc8 {[%clk 0:00:31.1]} 72. Qh8+
{[%clk 0:00:05.6]} 72... Kc7 {[%clk 0:00:30.6]} 73. Qe5+ {[%clk 0:00:06.8]}
73... Kd7 {[%clk 0:00:31.2]} 74. Qd4+ {[%clk 0:00:07.7]} 74... Qd5 {[%clk
0:00:31.9]} 75. Qg7+ {[%clk 0:00:08.1]} 75... Kd6 {[%clk 0:00:31.7]} 76. Qf8+
{[%clk 0:00:07.2]} 76... Ke5 {[%clk 0:00:31.6]} 77. Qe7+ {[%clk 0:00:06.8]}
77... Kf5 {[%clk 0:00:32.5]} 78. Qh7+ {[%clk 0:00:07.4]} 78... Kg4 {[%clk
0:00:33.4]} 79. Qg6+ {[%clk 0:00:08]} 79... Kf3 {[%clk 0:00:34.3]} 80. Qg1
{[%clk 0:00:06.8]} 80... e2 {[%clk 0:00:32.9]} 81. Qh1+ {[%clk 0:00:07.1]} 81...
Ke3 {[%clk 0:00:34.1]} 82. Qg1+ {[%clk 0:00:07.1]} 82... Ke4 {[%clk 0:00:34.4]}
83. Qg2+ {[%clk 0:00:07.8]} 83... f3 {[%clk 0:00:35.4]} 84. Qg4+ {[%clk
0:00:09.2]} 84... Ke3 {[%clk 0:00:36.3]} 85. Qg1+ {[%clk 0:00:08.7]} 85... f2
{[%clk 0:00:36.7]} 86. Qg3+ {[%clk 0:00:10.2]} 86... Ke4 {[%clk 0:00:36.2]} 87.
Qg2+ {[%clk 0:00:07.4]} 87... Ke3 {[%clk 0:00:33.8]} 88. Qg3+ {[%clk 0:00:08.3]}
88... Kd2 {[%clk 0:00:34.2]} 89. Qc3+ {[%clk 0:00:09.1]} 89... Kd1 {[%clk
0:00:35.1]} 90. Qc1# {[%clk 0:00:10]} 1-0

[Event "*** Titled Tuesday Blitz"]
[Site "Chess.com"]
[Date "2019.12.03"]
[Round "1"]
[White "filali-marouan"]
[Black "Joshukid"]
[Result "0-1"]
[WhiteElo "2286"]
[BlackElo "2624"]
[TimeControl "180+2"]
[EndTime "13:12:55 PST"]
[Termination "Joshukid won on time"]

1. e4 {[%clk 0:03:01.5]} 1... d5 {[%clk 0:02:50.6]} 2. exd5 {[%clk 0:03:00.5]}
2... Qxd5 {[%clk 0:02:52.5]} 3. Nc3 {[%clk 0:03:02.4]} 3... Qa5 {[%clk
0:02:52.8]} 4. Nf3 {[%clk 0:03:02.9]} 4... Nf6 {[%clk 0:02:53.6]} 5. h3 {[%clk
0:03:00.1]} 5... g6 {[%clk 0:02:50.3]} 6. Bc4 {[%clk 0:03:00.2]} 6... Bg7 {[%clk
0:02:51.5]} 7. O-O {[%clk 0:03:00.8]} 7... O-O {[%clk 0:02:53.1]} 8. a3 {[%clk
0:03:01]} 8... c6 {[%clk 0:02:54.5]} 9. b4 {[%clk 0:03:00.7]} 9... Qc7 {[%clk
0:02:55.7]} 10. Bb2 {[%clk 0:03:01.4]} 10... Ne4 {[%clk 0:02:57.1]} 11. Re1
{[%clk 0:02:58.3]} 11... Nxc3 {[%clk 0:02:57.1]} 12. Bxc3 {[%clk 0:02:59.8]}
12... Bxc3 {[%clk 0:02:58]} 13. dxc3 {[%clk 0:03:01.7]} 13... Bf5 {[%clk
0:02:58.2]} 14. Nd4 {[%clk 0:02:57.5]} 14... Bc8 {[%clk 0:02:55.8]} 15. Qd2
{[%clk 0:02:48.3]} 15... Qd6 {[%clk 0:02:45.6]} 16. Qh6 {[%clk 0:02:45.1]} 16...
Qf6 {[%clk 0:02:46.3]} 17. Rad1 {[%clk 0:02:35.6]} 17... Nd7 {[%clk 0:02:32.3]}
18. Nf3 {[%clk 0:02:23.4]} 18... e6 {[%clk 0:02:28.8]} 19. Ng5 {[%clk
0:01:43.4]} 19... Qg7 {[%clk 0:02:27.3]} 20. Qxg7+ {[%clk 0:01:44.3]} 20... Kxg7
{[%clk 0:02:29.2]} 21. Bxe6 {[%clk 0:01:45.4]} 21... fxe6 {[%clk 0:02:23.2]} 22.
Nxe6+ {[%clk 0:01:47.3]} 22... Kf7 {[%clk 0:02:24.8]} 23. Nxf8 {[%clk
0:01:47.7]} 23... Kxf8 {[%clk 0:02:24.8]} 24. c4 {[%clk 0:01:42.4]} 24... a5
{[%clk 0:02:16.7]} 25. b5 {[%clk 0:01:29.5]} 25... Kf7 {[%clk 0:02:15.1]} 26.
Rd3 {[%clk 0:00:59.7]} 26... a4 {[%clk 0:01:44.3]} 27. g4 {[%clk 0:00:46.4]}
27... g5 {[%clk 0:01:35.9]} 28. Kh2 {[%clk 0:00:43.1]} 28... Ra5 {[%clk
0:01:29.9]} 29. Kg3 {[%clk 0:00:35.9]} 29... cxb5 {[%clk 0:01:25.6]} 30. Rd5
{[%clk 0:00:35.2]} 30... h6 {[%clk 0:01:22.3]} 31. Rf5+ {[%clk 0:00:33.6]} 31...
Nf6 {[%clk 0:01:22.3]} 32. Rc5 {[%clk 0:00:30]} 32... Bd7 {[%clk 0:01:22.7]} 33.
Rc7 {[%clk 0:00:28]} 33... bxc4 {[%clk 0:01:20.4]} 34. Rxb7 {[%clk 0:00:24.2]}
34... Rb5 {[%clk 0:01:21.4]} 35. Rxb5 {[%clk 0:00:23.7]} 35... Bxb5 {[%clk
0:01:23.3]} 36. Re5 {[%clk 0:00:25.4]} 36... Bd7 {[%clk 0:01:23.6]} 37. f3
{[%clk 0:00:25.3]} 37... Ne8 {[%clk 0:01:18.6]} 38. h4 {[%clk 0:00:25.8]} 38...
gxh4+ {[%clk 0:01:09.9]} 39. Kxh4 {[%clk 0:00:27.7]} 39... Ng7 {[%clk
0:01:00.7]} 40. Rc5 {[%clk 0:00:26.6]} 40... Be6 {[%clk 0:01:01.5]} 41. Ra5
{[%clk 0:00:27.4]} 41... Bd7 {[%clk 0:01:03]} 42. Rc5 {[%clk 0:00:28.3]} 42...
Be6 {[%clk 0:00:58.6]} 43. Ra5 {[%clk 0:00:28]} 43... Ne8 {[%clk 0:00:42.5]} 44.
Rxa4 {[%clk 0:00:25.8]} 44... Nf6 {[%clk 0:00:41.8]} 45. Ra6 {[%clk 0:00:25.9]}
45... Nd5 {[%clk 0:00:41.9]} 46. Ra7+ {[%clk 0:00:17.9]} 46... Kg6 {[%clk
0:00:41.1]} 47. Rb7 {[%clk 0:00:17.1]} 47... Ne3 {[%clk 0:00:39.5]} 48. Rb6
{[%clk 0:00:16.8]} 48... Kf7 {[%clk 0:00:39]} 49. Rb7+ {[%clk 0:00:17.5]} 49...
Kf6 {[%clk 0:00:40.5]} 50. Rh7 {[%clk 0:00:16.8]} 50... Kg6 {[%clk 0:00:36.5]}
51. Re7 {[%clk 0:00:17.1]} 51... Kf6 {[%clk 0:00:38.4]} 52. Rh7 {[%clk
0:00:18.2]} 52... Nxc2 {[%clk 0:00:40.3]} 53. Rxh6+ {[%clk 0:00:19.7]} 53... Kf7
{[%clk 0:00:42.2]} 54. Rh7+ {[%clk 0:00:20.6]} 54... Kg6 {[%clk 0:00:41]} 55.
Rc7 {[%clk 0:00:22.1]} 55... Nxa3 {[%clk 0:00:41.2]} 56. f4 {[%clk 0:00:23.7]}
56... Bd5 {[%clk 0:00:32.5]} 57. f5+ {[%clk 0:00:24.7]} 57... Kf6 {[%clk
0:00:33.4]} 58. Kg3 {[%clk 0:00:25.1]} 58... Nb5 {[%clk 0:00:34.3]} 59. Rc5
{[%clk 0:00:25.8]} 59... Nc3 {[%clk 0:00:32.9]} 60. Kf4 {[%clk 0:00:25.2]} 60...
Ke7 {[%clk 0:00:32.9]} 61. g5 {[%clk 0:00:23.6]} 61... Kd6 {[%clk 0:00:34.5]}
62. Ra5 {[%clk 0:00:23.7]} 62... Ne2+ {[%clk 0:00:32.5]} 63. Ke3 {[%clk
0:00:23.6]} 63... Ng3 {[%clk 0:00:34.1]} 64. Kf4 {[%clk 0:00:23.8]} 64... Ne2+
{[%clk 0:00:29.9]} 65. Ke3 {[%clk 0:00:24.6]} 65... Ng3 {[%clk 0:00:31.2]} 66.
Kf4 {[%clk 0:00:26]} 66... Ne4 {[%clk 0:00:31.3]} 67. g6 {[%clk 0:00:26]} 67...
c3 {[%clk 0:00:29.1]} 68. g7 {[%clk 0:00:26.2]} 68... Nf6 {[%clk 0:00:28.5]} 69.
Kg5 {[%clk 0:00:22.1]} 69... c2 {[%clk 0:00:28.4]} 70. Ra1 {[%clk 0:00:21.5]}
70... Ng8 {[%clk 0:00:24.5]} 71. Re1 {[%clk 0:00:22]} 71... Be4 {[%clk
0:00:22.7]} 72. f6 {[%clk 0:00:20.8]} 72... Bd5 {[%clk 0:00:18.7]} 73. Kg6
{[%clk 0:00:20.5]} 73... Be4+ {[%clk 0:00:16.9]} 74. Kf7 {[%clk 0:00:21.1]}
74... Nh6+ {[%clk 0:00:16.2]} 75. Kf8 {[%clk 0:00:20.9]} 75... Bf3 {[%clk
0:00:16.1]} 76. f7 {[%clk 0:00:20.4]} 76... Bd1 {[%clk 0:00:14.2]} 77. g8=Q
{[%clk 0:00:21.4]} 77... c1=Q {[%clk 0:00:14.2]} 78. Qg3+ {[%clk 0:00:22.9]}
78... Kd7 {[%clk 0:00:14.4]} 79. Qh3+ {[%clk 0:00:21.6]} 79... Ng4 {[%clk
0:00:14.9]} 80. Qh5 {[%clk 0:00:14]} 80... Qa3+ {[%clk 0:00:13.8]} 81. Kg7
{[%clk 0:00:14.4]} 81... Qc3+ {[%clk 0:00:14.3]} 82. Kf8 {[%clk 0:00:13.6]}
82... Qxe1 {[%clk 0:00:13.4]} 83. Qf5+ {[%clk 0:00:14.8]} 83... Kc7 {[%clk
0:00:10.7]} 84. Kg8 {[%clk 0:00:14.8]} 84... Nh6+ {[%clk 0:00:11.2]} 85. Kg7
{[%clk 0:00:15.1]} 85... Nxf5+ {[%clk 0:00:12]} 86. Kf6 {[%clk 0:00:13.5]} 86...
Qe7+ {[%clk 0:00:13.4]} 0-1

[Event "*** Titled Tuesday Blitz"]
[Site "Chess.com"]
[Date "2019.12.03"]
[Round "2"]
[White "Ambitiousresolutions"]
[Black "LarissaSteenbekkers"]
[Result "1-0"]
[WhiteElo "2634"]
[BlackElo "1767"]
[TimeControl "180+2"]
[EndTime "13:15:48 PST"]
[Termination "Ambitiousresolutions won by resignation"]

1. e4 {[%clk 0:03:01.9]} 1... e6 {[%clk 0:02:58.7]} 2. d4 {[%clk 0:03:01.1]}
2... d5 {[%clk 0:02:59.9]} 3. Bd3 {[%clk 0:03:01.4]} 3... dxe4 {[%clk
0:02:57.7]} 4. Bxe4 {[%clk 0:03:03.3]} 4... Nf6 {[%clk 0:02:57.9]} 5. Bf3 {[%clk
0:03:04.7]} 5... c5 {[%clk 0:02:55.6]} 6. Ne2 {[%clk 0:03:05.5]} 6... Nc6 {[%clk
0:02:53.5]} 7. Be3 {[%clk 0:03:05.1]} 7... cxd4 {[%clk 0:02:52.5]} 8. Nxd4
{[%clk 0:03:07]} 8... Bd7 {[%clk 0:02:52.8]} 9. Nxc6 {[%clk 0:03:07.1]} 9...
Bxc6 {[%clk 0:02:52.7]} 10. Qxd8+ {[%clk 0:03:05.6]} 10... Kxd8 {[%clk
0:02:49.4]} 11. Bxc6 {[%clk 0:03:05.9]} 11... bxc6 {[%clk 0:02:49]} 12. Nd2
{[%clk 0:03:05.8]} 12... Kc7 {[%clk 0:02:46.5]} 13. Nc4 {[%clk 0:03:00.5]} 13...
Nd5 {[%clk 0:02:45.8]} 14. O-O-O {[%clk 0:02:57.4]} 14... Be7 {[%clk 0:02:44.3]}
15. Bd4 {[%clk 0:02:57.8]} 15... f6 {[%clk 0:02:44.1]} 16. b3 {[%clk 0:02:52.2]}
16... e5 {[%clk 0:02:43]} 17. Bb2 {[%clk 0:02:53.2]} 17... Bb4 {[%clk
0:02:40.8]} 18. g3 {[%clk 0:02:49.8]} 18... Rad8 {[%clk 0:02:39.4]} 19. a3
{[%clk 0:02:49.2]} 19... Bc3 {[%clk 0:02:37.8]} 20. Rd3 {[%clk 0:02:43.1]} 20...
Bxb2+ {[%clk 0:02:36.2]} 21. Kxb2 {[%clk 0:02:45]} 21... Nb6 {[%clk 0:02:36.7]}
22. Rc3 {[%clk 0:02:36.7]} 22... Rd2 {[%clk 0:02:32.8]} 23. Nxd2 {[%clk
0:02:37.3]} 1-0

[Event "*** Titled Tuesday Blitz"]
[Site "Chess.com"]
[Date "2019.12.03"]
[Round "2"]
[White "r31415"]
[Black "ferdipy"]
[Result "1-0"]
[WhiteElo "2448"]
[BlackElo "2208"]
[TimeControl "180+2"]
[EndTime "13:16:33 PST"]
[Termination "r31415 won by resignation"]

1. e4 {[%clk 0:03:01.9]} 1... e6 {[%clk 0:02:59.7]} 2. d4 {[%clk 0:03:02.5]}
2... d5 {[%clk 0:03:00.9]} 3. Nc3 {[%clk 0:03:03.8]} 3... Bb4 {[%clk 0:03:02.4]}
4. exd5 {[%clk 0:03:05]} 4... exd5 {[%clk 0:03:02.7]} 5. Bd3 {[%clk 0:03:06.4]}
5... Ne7 {[%clk 0:03:03.8]} 6. Qf3 {[%clk 0:03:06]} 6... Nbc6 {[%clk 0:03:01.5]}
7. Ne2 {[%clk 0:03:06.8]} 7... Be6 {[%clk 0:02:59.4]} 8. O-O {[%clk 0:03:02.9]}
8... Qd7 {[%clk 0:02:59.5]} 9. h3 {[%clk 0:03:04.3]} 9... O-O-O {[%clk
0:02:54.1]} 10. a3 {[%clk 0:02:58.2]} 10... Ba5 {[%clk 0:02:48.9]} 11. Be3
{[%clk 0:02:44.8]} 11... f6 {[%clk 0:02:47]} 12. Na4 {[%clk 0:02:40.3]} 12...
Bb6 {[%clk 0:02:41]} 13. b4 {[%clk 0:02:21.7]} 13... Nxd4 {[%clk 0:02:35.5]} 14.
Nxb6+ {[%clk 0:02:17.8]} 14... axb6 {[%clk 0:02:36.8]} 15. Nxd4 {[%clk
0:02:16.9]} 15... Bf7 {[%clk 0:02:29.8]} 16. a4 {[%clk 0:02:09.8]} 16... g5
{[%clk 0:02:27.7]} 17. a5 {[%clk 0:02:09.3]} 17... bxa5 {[%clk 0:02:26.5]} 18.
bxa5 {[%clk 0:02:10.5]} 18... Kb8 {[%clk 0:02:26.2]} 19. a6 {[%clk 0:02:00.2]}
19... b6 {[%clk 0:02:25.9]} 20. Qxf6 {[%clk 0:02:01.6]} 20... Rdf8 {[%clk
0:02:20.8]} 21. Qxe7 {[%clk 0:02:00.1]} 21... Qxe7 {[%clk 0:02:18.4]} 22. Nc6+
{[%clk 0:02:01.2]} 1-0

[Event "*** Titled Tuesday Blitz"]
[Site "Chess.com"]
[Date "2019.12.03"]
[Round "2"]
[White "GelmanAlexander"]
[Black "Jadeit90"]
[Result "1-0"]
[WhiteElo "2503"]
[BlackElo "2273"]
[TimeControl "180+2"]
[EndTime "13:16:40 PST"]
[Termination "GelmanAlexander won by resignation"]

1. e4 {[%clk 0:03:01.8]} 1... g6 {[%clk 0:03:00.2]} 2. Nc3 {[%clk 0:03:01.4]}
2... Bg7 {[%clk 0:03:01.4]} 3. f4 {[%clk 0:03:01.7]} 3... c5 {[%clk 0:03:02.7]}
4. Nf3 {[%clk 0:03:02.1]} 4... Nc6 {[%clk 0:03:04]} 5. g3 {[%clk 0:02:52]} 5...
e6 {[%clk 0:03:04.7]} 6. Bg2 {[%clk 0:02:53]} 6... Nge7 {[%clk 0:03:06]} 7. d3
{[%clk 0:02:54.4]} 7... O-O {[%clk 0:03:07.2]} 8. O-O {[%clk 0:02:55.1]} 8... d5
{[%clk 0:03:08.3]} 9. e5 {[%clk 0:02:48.4]} 9... Rb8 {[%clk 0:03:07.6]} 10. a4
{[%clk 0:02:44.3]} 10... a6 {[%clk 0:03:07.5]} 11. Ne2 {[%clk 0:02:41.1]} 11...
b5 {[%clk 0:03:07]} 12. axb5 {[%clk 0:02:41.8]} 12... axb5 {[%clk 0:03:08.9]}
13. g4 {[%clk 0:02:42.1]} 13... c4 {[%clk 0:03:08.7]} 14. d4 {[%clk 0:02:42.2]}
14... b4 {[%clk 0:03:09.1]} 15. Ng3 {[%clk 0:02:40.8]} 15... Qb6 {[%clk
0:03:09.6]} 16. Be3 {[%clk 0:02:38]} 16... c3 {[%clk 0:03:05]} 17. b3 {[%clk
0:02:36.6]} 17... Ba6 {[%clk 0:03:06.1]} 18. Rf2 {[%clk 0:02:24.5]} 18... Bb5
{[%clk 0:03:07.3]} 19. h4 {[%clk 0:02:13.6]} 19... Ra8 {[%clk 0:03:07.2]} 20.
Rc1 {[%clk 0:02:15.2]} 20... Ra2 {[%clk 0:03:06.5]} 21. h5 {[%clk 0:02:15.1]}
21... Rfa8 {[%clk 0:03:07.2]} 22. hxg6 {[%clk 0:02:12.8]} 22... hxg6 {[%clk
0:03:07.8]} 23. Ng5 {[%clk 0:02:12]} 23... Qa6 {[%clk 0:03:04.9]} 24. f5 {[%clk
0:02:09.7]} 24... exf5 {[%clk 0:02:53.5]} 25. gxf5 {[%clk 0:02:10.6]} 25... gxf5
{[%clk 0:02:54.5]} 26. Qh5 {[%clk 0:02:07.1]} 26... Ng6 {[%clk 0:02:54.2]} 27.
Bxd5 {[%clk 0:01:57.3]} 27... Nd8 {[%clk 0:02:51.4]} 28. Nxf5 {[%clk 0:01:49.9]}
1-0